fUST/lending_fUST_20251030
["ID","MTS","AMOUNT","RATE_DAILY","PERIOD"]
[392634599,1761765063102,-500.0,0.00033702,120]
[392634600,1761765063111,-338.56548958,0.00033702,2]
[392634601,1761765063120,-500.53286104,0.00033702,120]
[392634602,1761765063129,-321.51657925,0.00033702,120]
[392634603,1761765063139,-818.5,0.00033702,120]
[392634604,1761765063149,-818.57293745,0.00033702,120]
[392634605,1761765063158,-500.0,0.00033702,2]
[392634606,1761765063167,-501.58106851,0.00033702,120]
[392634607,1761765063177,-500.5506276,0.00033702,2]
[392634608,1761765063186,-500.0,0.00033702,2]
[392634609,1761765063195,-500.0,0.00033702,120]
[392634610,1761765063204,-500.0,0.00033702,2]
[392634611,1761765063213,-500.0,0.00033702,120]
[392634612,1761765063222,-500.22214118,0.00033702,2]
[392634613,1761765063232,-254.24808627,0.00033702,120]
[392634614,1761765063241,-500.0,0.00033702,120]
[392634615,1761765063251,-500.0,0.00033702,120]
[392634616,1761765063260,-500.0,0.00033702,120]
[392634617,1761765063270,-500.0,0.00033702,120]
[392634618,1761765063279,-545.78345477,0.00033702,120]
[392634619,1761765063288,-500.0,0.00033702,2]
[392634620,1761765063298,-500.0,0.00033702,120]
[392634621,1761765063307,-500.0,0.00033702,2]
[392634622,1761765063316,-500.0,0.00033702,120]
[392634623,1761765063325,-500.0,0.00033702,120]
[392634624,1761765063334,-500.0,0.00033702,120]
[392634625,1761765063346,-500.0,0.00033702,2]
[392634626,1761765063355,-500.0,0.00033702,120]
[392634627,1761765063365,-500.0,0.00033702,2]
[392634628,1761765063375,-504.64133156,0.00033702,120]
[392634629,1761765063384,-500.0,0.00033702,120]
[392634630,1761765063394,-500.0,0.00033702,120]
[392634631,1761765063403,-528.88,0.00033702,120]
[392634632,1761765063412,-500.0,0.00033702,120]
[392634633,1761765063422,-513.6,0.00033702,120]
[392634634,1761765063431,-500.0,0.00033702,120]
[392634635,1761765063440,-614.97108791,0.00033702,120]
[392634636,1761765063450,-500.0,0.00033702,2]
[392634637,1761765063459,-500.0,0.00033702,120]
[392634638,1761765063468,-500.0,0.00033702,120]
[392634639,1761765063478,-500.0,0.00033702,120]
[392634640,1761765063487,-520.22793298,0.00033702,120]
[392634641,1761765063497,-500.0,0.00033702,2]
[392634642,1761765063507,-500.0,0.00033702,120]
[392634643,1761765063516,-500.0,0.00033702,2]
[392634644,1761765063525,-500.0,0.00033702,120]
[392634645,1761765063534,-500.0,0.00033702,120]
[392634646,1761765063543,-500.0,0.00033702,120]
[392634647,1761765063552,-430.95,0.00033702,120]
[392634648,1761765063562,-500.0,0.00033702,120]
[392634649,1761765063571,-500.0,0.00033702,120]
[392634650,1761765063579,-500.0,0.00033702,2]
[392634651,1761765063589,-500.0,0.00033702,120]
[392634652,1761765063601,-500.0,0.00033702,120]
[392634653,1761765063610,-500.0,0.00033702,120]
[392634654,1761765063620,-500.0,0.00033702,120]
[392634655,1761765063629,-500.0,0.00033702,2]
[392634656,1761765063639,-500.0,0.00033702,120]
[392634657,1761765063648,-500.0,0.00033702,120]
[392634658,1761765063657,-500.0,0.00033702,120]
[392634659,1761765063667,-500.0,0.00033702,2]
[392634660,1761765063676,-500.0,0.00033702,120]
[392634661,1761765063685,-500.0,0.00033702,120]
[392634662,1761765063695,-500.0,0.00033702,120]
[392634663,1761765063704,-500.0,0.00033702,2]
[392634664,1761765063713,-500.0,0.00033702,2]
[392634665,1761765063722,-509.8,0.00033702,120]
[392634666,1761765063732,-500.0,0.00033702,120]
[392634667,1761765063741,-500.0,0.00033702,120]
[392634668,1761765063750,-500.0,0.00033702,120]
[392634669,1761765063760,-358.00908276,0.00033702,120]
[392634670,1761765063769,-500.0,0.00033702,120]
[392634671,1761765063777,-501.31067888,0.00033702,120]
[392634672,1761765063787,-500.0,0.00033702,120]
[392634673,1761765063796,-500.88347781,0.00033702,2]
[392634674,1761765063804,-500.0,0.00033702,120]
[392634675,1761765063814,-500.0,0.00033702,120]
[392634676,1761765063824,-500.0,0.00033702,120]
[392634677,1761765063833,-500.0,0.00033702,120]
[392634678,1761765063842,-500.0,0.00033702,120]
[392634679,1761765063854,-892.65,0.00033702,2]
[392634680,1761765063863,-212.94,0.00033702,120]
[392634681,1761765063872,-892.65,0.00033702,120]
[392634682,1761765063882,-892.65,0.00033702,120]
[392634683,1761765063893,-892.65,0.00033702,120]
[392634684,1761765063902,-892.65,0.00033702,120]
[392634685,1761765063912,-892.65,0.00033702,120]
[392634686,1761765063923,-892.65,0.00033702,120]
[392634687,1761765063934,-500.0,0.00033702,2]
[392634688,1761765063944,-500.0,0.00033702,2]
[392634689,1761765063953,-892.65,0.00033702,120]
[392634690,1761765063962,-500.0,0.00033702,120]
[392634691,1761765063973,-500.0,0.00033702,2]
[392634692,1761765063982,-501.97545117,0.00033702,120]
[392634693,1761765063991,-892.65,0.00033702,120]
[392634694,1761765064002,-500.0,0.00033702,120]
[392634695,1761765064011,-500.0,0.00033702,120]
[392634696,1761765064021,-892.65,0.00033702,120]
[392634697,1761765064030,-500.0,0.00033702,120]
[392634698,1761765064039,-500.0,0.00033702,2]
[392634699,1761765064049,-500.0,0.00033702,120]
[392634700,1761765064058,-500.0,0.00033702,120]
[392634701,1761765064067,-892.65,0.00033702,120]
[392634702,1761765064077,-500.0,0.00033702,120]
[392634703,1761765064086,-500.0,0.00033702,2]
[392634704,1761765064097,-319.52,0.00033702,120]
[392634705,1761765064107,-500.0,0.00033702,120]
[392634706,1761765064116,-892.65,0.00033702,120]
[392634707,1761765064125,-500.0,0.00033702,120]
[392634708,1761765064135,-500.0,0.00033702,120]
[392634709,1761765064144,-892.65,0.00033702,120]
[392634710,1761765064153,-500.0,0.00033702,120]
[392634711,1761765064163,-892.65,0.00033702,120]
[392634712,1761765064173,-334.49,0.00033702,120]
[392634713,1761765064182,-892.65,0.00033702,120]
[392634714,1761765064191,-500.0,0.00033702,2]
[392634715,1761765064201,-892.65,0.00033702,120]
[392634716,1761765064210,-501.23133981,0.00033702,120]
[392634717,1761765064219,-892.65,0.00033702,120]
[392634718,1761765064229,-553.40250965,0.00033702,2]
[392634719,1761765064238,-892.65,0.00033702,120]
[392634720,1761765064247,-666.86885493,0.00033702,120]
[392634721,1761765064278,-225.78114507,0.00033702,120]
[392634722,1761765064287,-500.0,0.00033702,2]
[392634723,1761765064297,-892.65,0.00033702,120]
[392634724,1761765064306,-387.19892327,0.00033702,120]
[392634725,1761765064317,-112.80107673,0.00033702,120]
[392634726,1761765064326,-892.65,0.00033702,120]
[392634727,1761765064335,-500.0,0.00033702,120]
[392634728,1761765064347,-784.67283658,0.00033702,120]
[392634755,1761765635397,200.0,0.00027,120]
[392634756,1761765635704,200.0,0.000283,120]
[392634757,1761765636003,223.64375,0.000296,120]
[392634758,1761765791838,262.62914429,0.00019212,2]
[392634766,1761766032104,-285.3770971,0.00019482,2]
[392634767,1761766032124,-104.90968428,0.00019503,2]
[392634768,1761766037096,-125.20656289,0.00019503,2]
[392634769,1761766037116,-1389.12595146,0.00019523,2]
[392634779,1761766054086,-248.05100672,0.00019523,2]
[392634783,1761766088399,266.96510605,0.00019212,2]
[392634784,1761766099759,1009.53008289,0.00015,2]
[392634786,1761766105907,286.96778653,0.0001,2]
[392634787,1761766111611,8173.91788024,0.00017,2]
[392634788,1761766111634,10000.01,0.00017,2]
[392634789,1761766111669,1875.05619157,0.00017,2]
[392634790,1761766114470,172.084945,0.00015,2]
[392634801,1761766158108,-257.29924645,0.00019423,2]
[392634802,1761766158130,-26.148708,0.00019517,2]
[392634844,1761766236120,-212.84935,0.00019517,2]
[392634846,1761766236130,-69.49611992,0.0001952,2]
[392634849,1761766236141,-156.01780231,0.0001952,2]
[392634851,1761766236150,-239.13672777,0.00019523,2]
[392634853,1761766236161,-857.279338,0.00019523,2]
[392634855,1761766236175,-1927.8935305,0.00019523,2]
[392634858,1761766236186,-2200.10207672,0.00019523,2]
[392634863,1761766236233,-78.16434673,0.00019523,2]
[392634865,1761766236242,-150.0,0.00019999,2]
[392634867,1761766236251,-251.62704592,0.00020427,2]
[392634869,1761766236260,-292.78489527,0.00020473,2]
[392634871,1761766236269,-1200.0,0.00020523,2]
[392634873,1761766236279,-173.0,0.00020524,2]
[392634875,1761766236288,-300.0,0.00020524,2]
[392634877,1761766236297,-300.0,0.00020524,2]
[392634879,1761766236308,-300.0,0.00020524,2]
[392634881,1761766236319,-300.0,0.00020525,2]
[392634883,1761766236328,-502.81551491,0.00020525,2]
[392634885,1761766236338,-267.27623371,0.00020525,2]
[392634887,1761766236347,-28571.50918154,0.00020526,2]
[392634889,1761766236358,-682.79400798,0.00020526,2]
[392634892,1761766236369,-445.0788873,0.00020526,2]
[392634894,1761766236380,-1999.316,0.00020526,2]
[392634896,1761766236391,-859.37185039,0.00020526,2]
[392635014,1761766237983,-17441.93007279,0.00020526,2]
[392635016,1761766237993,-151.0,0.00020527,2]
[392635018,1761766238002,-151.0,0.00020527,2]
[392635020,1761766238011,-151.0,0.00020527,2]
[392635022,1761766238020,-151.0,0.00020527,2]
[392635024,1761766238031,-151.0,0.00020527,2]
[392635026,1761766238040,-151.0,0.00020527,2]
[392635028,1761766238049,-151.0,0.00020527,2]
[392635030,1761766238059,-151.0,0.00020527,2]
[392635032,1761766238069,-151.0,0.00020527,2]
[392635034,1761766238078,-151.0,0.00020527,2]
[392635036,1761766238087,-151.0,0.00020527,2]
[392635037,1761766238096,-151.0,0.00020527,2]
[392635038,1761766238106,-151.0,0.00020527,2]
[392635039,1761766238115,-151.0,0.00020527,2]
[392635040,1761766238124,-151.0,0.00020527,2]
[392635041,1761766238133,-151.0,0.00020527,2]
[392635042,1761766238142,-151.0,0.00020527,2]
[392635043,1761766238151,-151.0,0.00020527,2]
[392635044,1761766238161,-151.0,0.00020527,2]
[392635045,1761766238170,-151.0,0.00020527,2]
[392635046,1761766238179,-204.37,0.00020529,3]
[392635047,1761766238189,-847.44890187,0.00020538,2]
[392635048,1761766238199,-409.39223367,0.00020538,2]
[392635049,1761766238208,-847.44890187,0.00020538,2]
[392635050,1761766238219,-847.44890187,0.00020538,2]
[392635051,1761766238229,-847.44890187,0.00020538,2]
[392635052,1761766238238,-847.44890187,0.00020538,2]
[392635054,1761766238247,-847.44890187,0.00020538,2]
[392635055,1761766238257,-847.44890187,0.00020538,2]
[392635057,1761766238267,-847.44890187,0.00020538,2]
[392635059,1761766238277,-847.44890187,0.00020538,2]
[392635061,1761766238286,-847.44890187,0.00020538,2]
[392635077,1761766238296,-847.44890187,0.00020538,2]
[392635080,1761766238447,-847.44890187,0.00020538,2]
[392635082,1761766238457,-847.44890187,0.00020538,2]
[392635084,1761766238466,-847.44890187,0.00020538,2]
[392635085,1761766238477,-847.44890187,0.00020538,2]
[392635086,1761766238487,-847.44890187,0.00020538,2]
[392635087,1761766238496,-847.44890187,0.00020538,2]
[392635088,1761766238506,-847.44890187,0.00020538,2]
[392635089,1761766238515,-932.19379206,0.00020538,2]
[392635090,1761766238525,-932.19379206,0.00020538,2]
[392635091,1761766238535,-932.19379206,0.00020538,2]
[392635092,1761766238545,-932.19379206,0.00020538,2]
[392635093,1761766238554,-932.19379206,0.00020538,2]
[392635095,1761766238563,-932.19379206,0.00020538,2]
[392635097,1761766238573,-932.19379206,0.00020538,2]
[392635099,1761766238582,-932.19379206,0.00020538,2]
[392635101,1761766238592,-932.19379206,0.00020538,2]
[392635102,1761766238601,-370000.0,0.00020539,2]
[392635104,1761766238611,-500.48425532,0.00020573,2]
[392635105,1761766238621,-500.0,0.00020573,2]
[392635106,1761766238631,-500.0,0.00020573,2]
[392635107,1761766238641,-500.0,0.00020573,2]
[392635108,1761766238650,-500.0,0.00020573,2]
[392635109,1761766238659,-500.0,0.00020573,2]
[392635110,1761766238670,-500.0,0.00020573,2]
[392635111,1761766238679,-1376.78869221,0.0002061,2]
[392635112,1761766238689,-253.97035411,0.000209,2]
[392635113,1761766238698,-500.22451106,0.00020973,2]
[392635114,1761766238708,-500.27944685,0.00020973,2]
[392635115,1761766238719,-274.56401593,0.00021,2]
[392635116,1761766238729,-205.38516282,0.00021,2]
[392635117,1761766238738,-300.0,0.00021049,2]
[392635118,1761766238748,-300.0,0.00021049,2]
[392635119,1761766238757,-300.0,0.00021049,2]
[392635120,1761766238766,-300.0,0.00021049,2]
[392635121,1761766238775,-300.0,0.00021049,2]
[392635122,1761766238784,-300.0,0.00021049,2]
[392635123,1761766238794,-300.0,0.00021049,2]
[392635124,1761766238803,-300.0,0.00021049,2]
[392635125,1761766238812,-300.0,0.00021049,2]
[392635126,1761766238822,-300.0,0.00021049,2]
[392635127,1761766238831,-300.0,0.00021049,2]
[392635128,1761766238840,-300.0,0.00021049,2]
[392635129,1761766238850,-300.0,0.00021049,2]
[392635130,1761766238860,-300.0,0.00021049,2]
[392635131,1761766238870,-300.0,0.00021049,2]
[392635132,1761766238879,-1000.0,0.00021121,2]
[392635133,1761766238888,-1000.0,0.00021121,2]
[392635134,1761766238897,-1000.0,0.00021121,2]
[392635135,1761766238908,-4457.0560488,0.00021443,2]
[392635136,1761766238917,-266.10642823,0.0002152,2]
[392635137,1761766238937,-1057.90724269,0.00021668,2]
[392635138,1761766238948,-1500.0,0.00021668,2]
[392635139,1761766238958,-1500.0,0.00021668,2]
[392635140,1761766238971,-248.05,0.00021817,2]
[392635141,1761766238981,-408.74,0.00021899,3]
[392635142,1761766238992,-358.4092464,0.00022,2]
[392635143,1761766239002,-272.1771271,0.00022023,2]
[392635144,1761766239014,-2716.14,0.000221,7]
[392635145,1761766239024,-337.02921894,0.00022216,2]
[392635146,1761766239035,-2000.0,0.00022216,2]
[392635147,1761766239045,-2500.0,0.00022764,2]
[392635148,1761766239055,-251.6270459,0.00022844,2]
[392635149,1761766239065,-40727.26906181,0.0002287,2]
[392635150,1761766239074,-238.76467401,0.00023,5]
[392635151,1761766239084,-5336.86926366,0.00023,2]
[392635152,1761766239094,-99692.12277429,0.00023,10]
[392635153,1761766239105,-3000.0,0.00023312,2]
[392635154,1761766239115,-306.69893423,0.0002352,2]
[392635155,1761766239126,-372.08,0.00023635,2]
[392635156,1761766239136,-3500.0,0.0002386,2]
[392635157,1761766239146,-4000.0,0.00024408,2]
[392635158,1761766239156,-560.45312179,0.00024873,2]
[392635159,1761766239166,-500.66529198,0.00024873,2]
[392635160,1761766239176,-500.13634476,0.00024873,2]
[392635161,1761766239186,-500.39334977,0.00024873,2]
[392635162,1761766239196,-500.48501443,0.00024873,2]
[392635163,1761766239206,-256.59580769,0.00024873,2]
[392635164,1761766239216,-500.0,0.00024873,2]
[392635165,1761766239228,-500.0,0.00024873,2]
[392635166,1761766239238,-500.0,0.00024873,2]
[392635167,1761766239247,-500.79476039,0.00024873,2]
[392635168,1761766239257,-500.0,0.00024873,2]
[392635169,1761766239267,-500.0,0.00024873,2]
[392635170,1761766239277,-500.23636804,0.00024873,2]
[392635171,1761766239287,-500.0,0.00024873,2]
[392635172,1761766239296,-500.0,0.00024873,2]
[392635173,1761766239308,-176.01046318,0.00024873,2]
[392635174,1761766239319,-500.0,0.00024873,2]
[392635175,1761766239328,-533.20555364,0.00024873,2]
[392635176,1761766239338,-500.0,0.00024873,2]
[392635177,1761766239348,-367273.41242276,0.000249,2]
[392635178,1761766239362,-2193.4165003,0.000249,2]
[392635179,1761766239374,-109160.94276094,0.000249,2]
[392635180,1761766239383,-3877.75336372,0.00024956,2]
[392635181,1761766239393,-6809.83094907,0.00025,2]
[392635182,1761766239402,-198.8,0.00025,2]
[392635183,1761766239411,-574.26314833,0.000252,5]
[392635184,1761766239420,-251.6270459,0.0002526,2]
[392635185,1761766239429,-1000.0,0.00025421,2]
[392635186,1761766239439,-371.72118887,0.00025421,2]
[392635187,1761766239448,-1000.0,0.00025421,2]
[392635188,1761766239457,-496.1,0.00025453,2]
[392635189,1761766239466,-900.0,0.00025469,3]
[392635190,1761766239477,-1000.0,0.000255,2]
[392635191,1761766239486,-347.29144023,0.0002552,2]
[392635192,1761766239496,-1500.0,0.00025968,2]
[392635193,1761766239506,-525.78030862,0.00026,2]
[392635194,1761766239516,-49658.713058,0.00026,30]
[392635195,1761766239525,-19900.0,0.00026,2]
[392635196,1761766239534,-193.09932084,0.0002616,2]
[392635197,1761766239543,-412.0,0.00026388,2]
[392635198,1761766239552,-880.94510484,0.00026516,2]
[392635199,1761766239562,-620.13,0.00027271,2]
[392635200,1761766239571,-1000.0,0.00027397,2]
[392635201,1761766239581,-1000.0,0.00027397,2]
[392635202,1761766239590,-1999.0,0.00027397,2]
[392635203,1761766239599,-563.17702819,0.00027397,2]
[392635204,1761766239609,-2995.34,0.000274,2]
[392635206,1761766239618,-387.88394624,0.0002752,2]
[392635208,1761766239628,-341.476,0.00027624,17]
[392635210,1761766239637,-1000.0,0.00027671,2]
[392635212,1761766239646,-251.6270459,0.00027677,2]
[392635214,1761766239655,-600.0,0.00028223,30]
[392635216,1761766239664,-1999.0,0.00028767,4]
[392635217,1761766239674,-1000.0,0.0002904,2]
[392635220,1761766239683,-1028.13691268,0.0002904,2]
[392635223,1761766239692,-151.0,0.0002904,2]
[392635226,1761766239702,-500.0,0.0002904,2]
[392635228,1761766239711,-265.78659564,0.0002904,2]
[392635230,1761766239720,-500.0,0.0002904,2]
[392635231,1761766239729,-500.0,0.0002904,2]
[392635233,1761766239739,-500.0,0.0002904,2]
[392635234,1761766239749,-492.64494717,0.0002904,2]
[392635235,1761766239759,-1527.63191913,0.0002904,2]
[392635236,1761766239768,-191.87295522,0.0002904,2]
[392635237,1761766239778,-744.16,0.00029089,2]
[392635238,1761766239788,-238.998058,0.00029275,2]
[392635239,1761766239799,-412.0,0.00029388,2]
[392635240,1761766239808,-428.47645224,0.0002952,2]
[392635241,1761766239819,-198.97225457,0.00029588,2]
[392635242,1761766239829,-2000.0,0.00029931,7]
[392635243,1761766239838,-1633.0,0.0003,30]
[392635244,1761766239848,-17787.86478799,0.0003,2]
[392635245,1761766239857,-58082.95340767,0.0003001,5]
[392635246,1761766239876,-12213.98374997,0.0003001,5]
[392635247,1761766239888,-21490.75314038,0.0003001,5]
[392635248,1761766239899,-16622.7261447,0.0003001,5]
[392635249,1761766239910,-889.1369001,0.0003001,5]
[392635250,1761766239921,-3674.42887156,0.0003001,5]
[392635251,1761766239930,-251.6270459,0.00030094,2]
[392635252,1761766239941,-1173.94408254,0.00030136,6]
[392635253,1761766239952,-825.05591746,0.00030136,6]
[392635254,1761766239961,-206.33422799,0.00030136,2]
[392635255,1761766239972,-173.68762545,0.00030137,2]
[392635256,1761766239982,-868.18,0.00030907,2]
[392635257,1761766239991,-162.85356235,0.00031,120]
[392635258,1761766240005,-558.43727775,0.00031,120]
[392635259,1761766240014,-819.09909932,0.00031,120]
[392635260,1761766240023,-2212.16364317,0.00031,120]
[392635261,1761766240033,-161.16383932,0.00031,120]
[392635262,1761766240043,-183.94139313,0.00031,120]
[392635263,1761766240052,-207.74075997,0.00031,120]
[392635264,1761766240062,-212.78059963,0.00031,120]
[392635265,1761766240072,-1289.56691761,0.00031,120]
[392635266,1761766240081,-196.30002769,0.00031,120]
[392635267,1761766240091,-200.0,0.00031,7]
[392635268,1761766240100,-720.0,0.00031046,30]
[392635269,1761766240109,-2716.14,0.000311,7]
[392635270,1761766240118,-1999.0,0.00031506,8]
[392635271,1761766240129,-469.06895824,0.0003152,2]
[392635272,1761766240138,-162.85356235,0.000319,120]
[392635273,1761766240147,-558.43727775,0.000319,120]
[392635274,1761766240156,-819.09909932,0.000319,120]
[392635275,1761766240165,-1730.96501928,0.000319,120]
[392635276,1761766240315,-481.19862389,0.000319,120]
[392635277,1761766240324,-161.16383932,0.000319,120]
[392635278,1761766240334,-183.94139313,0.000319,120]
[392635279,1761766240345,-207.74075997,0.000319,120]
[392635280,1761766240355,-212.78059963,0.000319,120]
[392635281,1761766240365,-1289.56691761,0.000319,120]
[392635282,1761766240375,-196.30002769,0.000319,120]
[392635283,1761766240386,-464.72934377,0.00031945,120]
[392635284,1761766240395,-500.0,0.00032058,7]
[392635285,1761766240404,-157.7655,0.00032293,2]
[392635286,1761766240414,-412.0,0.00032388,2]
[392635287,1761766240423,-157.7655,0.00032393,2]
[392635288,1761766240432,-153.0,0.00032418,2]
[392635289,1761766240441,-153.0,0.00032424,2]
[392635290,1761766240451,-251.6270459,0.00032511,2]
[392635291,1761766240461,-2995.34,0.000326,2]
[392635292,1761766240472,-302.0,0.00032662,2]
[392635293,1761766240481,-151.0,0.00032687,2]
[392635294,1761766240490,-992.21,0.00032725,2]
[392635295,1761766240499,-1999.0,0.00032876,120]
[392635296,1761766240508,-1812.53,0.00032877,10]
[392635297,1761766240517,-1510.44,0.00032877,10]
[392635298,1761766240526,-162.85356235,0.000329,120]
[392635299,1761766240535,-558.43727775,0.000329,120]
[392635300,1761766240544,-819.09909932,0.000329,120]
[392635301,1761766240553,-36.12984815,0.000329,120]
[392635376,1761766246098,-2176.03379502,0.000329,120]
[392635378,1761766246109,-183.94139313,0.000329,120]
[392635379,1761766246119,-161.16383932,0.000329,120]
[392635380,1761766246129,-212.78059963,0.000329,120]
[392635381,1761766246139,-1289.56691761,0.000329,120]
[392635382,1761766246148,-196.30002769,0.000329,120]
[392635383,1761766246158,-267.92,0.000331,7]
[392635384,1761766246167,-1533.59365343,0.0003342,2]
[392635385,1761766246177,-509.66146424,0.0003352,120]
[392635386,1761766246187,-6952.4063159,0.00033587,2]
[392635387,1761766246196,-1258.7,0.00033677,10]
[392635388,1761766246205,-613.12,0.00033677,3]
[392635389,1761766246214,-500.0,0.00033687,2]
[392635391,1761766246225,-521.50507038,0.00033687,12]
[392635393,1761766246234,-500.0,0.00033687,2]
[392635394,1761766246243,-500.0,0.00033687,2]
[392635395,1761766246252,-500.0,0.00033687,2]
[392635396,1761766246260,-1530.0,0.00033687,120]
[392635397,1761766246270,-500.0,0.00033687,2]
[392635398,1761766246279,-500.0,0.00033687,2]
[392635399,1761766246288,-500.0,0.00033687,2]
[392635400,1761766246298,-500.0,0.00033687,2]
[392635401,1761766246308,-500.0,0.00033687,2]
[392635402,1761766246320,-500.0,0.00033687,2]
[392635403,1761766246331,-500.0,0.00033687,2]
[392635404,1761766246340,-500.0,0.00033687,2]
[392635405,1761766246351,-500.0,0.00033687,2]
[392635406,1761766246361,-500.0,0.00033687,2]
[392635407,1761766246370,-500.0,0.00033687,2]
[392635408,1761766246379,-500.0,0.00033687,2]
[392635409,1761766246390,-500.0,0.00033687,2]
[392635410,1761766246400,-500.0,0.00033687,2]
[392635411,1761766246409,-500.0,0.00033687,2]
[392635412,1761766246419,-500.0,0.00033687,2]
[392635413,1761766246429,-500.0,0.00033687,2]
[392635414,1761766246438,-500.0,0.00033687,2]
[392635415,1761766246446,-500.0,0.00033687,2]
[392635416,1761766246455,-500.0,0.00033687,2]
[392635417,1761766246464,-500.0,0.00033687,2]
[392635418,1761766246473,-253.84041926,0.00033687,2]
[392635419,1761766246484,-502.23,0.00033687,2]
[392635420,1761766246493,-500.0,0.00033687,2]
[392635421,1761766246503,-500.0,0.00033687,2]
[392635422,1761766246512,-500.0,0.00033687,2]
[392635423,1761766246522,-500.0,0.00033687,2]
[392635424,1761766246531,-500.0,0.00033687,2]
[392635425,1761766246540,-483.05981221,0.00033687,2]
[392635426,1761766246550,-500.0,0.00033687,2]
[392635427,1761766246559,-500.0,0.00033687,2]
[392635428,1761766246567,-500.0,0.00033687,2]
[392635429,1761766246576,-500.0,0.00033687,2]
[392635430,1761766246585,-500.0,0.00033687,2]
[392635431,1761766246595,-500.0,0.00033687,2]
[392635432,1761766246604,-500.0,0.00033687,120]
[392635433,1761766246613,-500.0,0.00033687,120]
[392635434,1761766246622,-500.0,0.00033687,120]
[392635435,1761766246631,-500.0,0.00033687,120]
[392635436,1761766246640,-500.0,0.00033687,120]
[392635437,1761766246649,-500.0,0.00033687,120]
[392635438,1761766246659,-500.0,0.00033687,120]
[392635439,1761766246668,-500.0,0.00033687,120]
[392635440,1761766246678,-500.0,0.00033687,120]
[392635441,1761766246687,-500.0,0.00033687,120]
[392635442,1761766246697,-322.89587049,0.00033687,120]
[392635443,1761766246706,-500.0,0.00033687,2]
[392635444,1761766246715,-500.0,0.00033687,2]
[392635445,1761766246726,-500.0,0.00033687,2]
[392635446,1761766246735,-362.09,0.00033687,120]
[392635447,1761766246744,-500.0,0.00033687,2]
[392635448,1761766246752,-185.46,0.00033687,120]
[392635449,1761766246762,-615.9,0.00033687,2]
[392635450,1761766246772,-500.0,0.00033687,2]
[392635451,1761766246781,-500.0,0.00033687,2]
[392635452,1761766246790,-235.37,0.00033687,120]
[392635453,1761766246800,-500.0,0.00033687,2]
[392635454,1761766246809,-644.61,0.00033687,2]
[392635455,1761766246818,-500.0,0.00033687,2]
[392635456,1761766246827,-231.14,0.00033687,120]
[392635457,1761766246837,-500.0,0.00033687,2]
[392635458,1761766246846,-500.0,0.00033687,2]
[392635459,1761766246855,-626.9,0.00033687,120]
[392635460,1761766246864,-500.0,0.00033687,2]
[392635461,1761766246873,-500.0,0.00033687,120]
[392635462,1761766246882,-500.0,0.00033687,2]
[392635463,1761766246892,-500.0,0.00033687,120]
[392635464,1761766246901,-504.03199739,0.00033687,120]
[392635465,1761766246911,-500.0,0.00033687,2]
[392635466,1761766246921,-500.0,0.00033687,120]
[392635467,1761766246931,-500.0,0.00033687,120]
[392635468,1761766246940,-500.0,0.00033687,120]
[392635469,1761766246949,-500.0,0.00033687,120]
[392635470,1761766246959,-500.0,0.00033687,120]
[392635471,1761766246968,-500.0,0.00033687,120]
[392635472,1761766246980,-500.0,0.00033687,120]